[Event "Mukachevo Masters IM 2018"]
[Site "Mukachevo"]
[Date "2018.10.17"]
[Round "1"]
[White "Vypkhaniuk, Ihor"]
[Black "Kagramanianz, Vartan"]
[Result "1/2-1/2"]
[ECO "A11"]
[WhiteElo "2389"]
[BlackElo "2231"]
[Annotator "NA"]
[PlyCount "34"]
[EventDate "2018.08.17"]
[EventType "swiss"]
[EventCountry "UKR"]
[SourceTitle "playchess.com"]
[Source "ChessBase"]
[SourceQuality "1"]
[TimeControl "5400+30"]

1. c4 c6 2. Nf3 Nf6 3. Nc3 d5 4. e3 g6 5. Qb3 e6 6. d4 Bg7 7. Bd3 O-O 8. O-O Nbd7 9. Bd2 dxc4 10. Qxc4 e5 11. dxe5 Ng4 12. Be4 Ndxe5 13. Qe2 Be6 14. Nxe5 Nxe5 15. b3 f5 16. Bc2 Qd6 17. h3 Rad8 1/2-1/2

[Event "Mukachevo Masters IM 2018"]
[Site "Mukachevo"]
[Date "2018.10.17"]
[Round "1"]
[White "Oros, Robert"]
[Black "Larkin, Vladyslav"]
[Result "1/2-1/2"]
[ECO "D00"]
[WhiteElo "2336"]
[BlackElo "2234"]
[Annotator "NA"]
[PlyCount "57"]
[EventDate "2018.08.17"]
[EventType "swiss"]
[EventCountry "UKR"]
[SourceTitle "playchess.com"]
[Source "ChessBase"]
[SourceQuality "1"]
[TimeControl "5400+30"]

1. d4 {[%emt 0:00:00]} d5 {[%emt 0:00:00]} 2. Bf4 {[%emt 0:00:00]} Bf5 {[%emt 0:00:00]} 3. e3 {[%emt 0:00:07]} e6 {[%emt 0:00:05]} 4. Bd3 {[%emt 0:01:41]} Bg6 {[%emt 0:00:18]} 5. Nf3 {[%emt 0:01:35]} Nd7 {[%emt 0:01:35]} 6. c4 {[%emt 0:02:28]} dxc4 {[%emt 0:03:06]} 7. Bxc4 {[%emt 0:02:37]} Bd6 {[%emt 0:01:37]} 8. Bg5 {[%emt 0:01:21]} Be7 {[%emt 0:03:23]} 9. Bxe7 {[%emt 0:00:21]} Qxe7 {[%emt 0:00:11]} 10. O-O {[%emt 0:04:44]} Ngf6 {[%emt 0:01:01]} 11. Nc3 {[%emt 0:03:06]} O-O {[%emt 0:02:50]} 12. Qb3 {[%emt 0:03:38]} Rab8 {[%emt 0:04:40]} 13. a4 {[%emt 0:03:03]} a6 {[%emt 0:00:32]} 14. a5 {[%emt 0:01:10]} e5 {[%emt 0:05:26]} 15. Nh4 {[%emt 0:01:58]} exd4 {[%emt 0:09:24]} 16. Nxg6 {[%emt 0:00:51]} hxg6 {[%emt 0:00:05]} 17. exd4 {[%emt 0:00:11]} Qd6 {[%emt 0:00:04]} 18. Rfd1 {[%emt 0:05:09]} g5 {[%emt 0:06:31]} 19. Qa3 {[%emt 0:05:33]} Qxa3 {[%emt 0:09:23]} 20. Rxa3 {[%emt 0:00:10]} Rfe8 {[%emt 0:00:49]} 21. Kf1 {[%emt 0:16:48]} g6 {[%emt 0:05:44]} 22. h3 {[%emt 0:03:39]} Kg7 {[%emt 0:05:16]} 23. Be2 {[%emt 0:03:11]} Re6 {[%emt 0:08:54]} 24. Rb3 {[%emt 0:04:20]} b5 {[%emt 0:03:36]} 25. axb6 {[%emt 0:06:06]} Rexb6 {[%emt 0:00:08]} 26. Rxb6 {[%emt 0:00:56]} Rxb6 {[%emt 0:00:05]} 27. Rd2 {[%emt 0:01:20]} Rd6 {[%emt 0:02:41]} 28. Ke1 {[%emt 0:04:59]} Nf8 {[%emt 0:01:48]} 29. Bc4 {[%emt 0:02:19]} 1/2-1/2

[Event "Mukachevo Masters IM 2018"]
[Site "Mukachevo"]
[Date "2018.10.17"]
[Round "1"]
[White "Boricsev, Oleg"]
[Black "Tiba, Vladyslav"]
[Result "0-1"]
[ECO "B22"]
[WhiteElo "2298"]
[BlackElo "2337"]
[Annotator "NA"]
[PlyCount "68"]
[EventDate "2018.08.17"]
[EventType "swiss"]
[EventCountry "UKR"]
[SourceTitle "playchess.com"]
[Source "ChessBase"]
[SourceQuality "1"]
[TimeControl "5400+30"]

1. e4 {[%emt 0:00:00]} c5 {[%emt 0:00:00]} 2. c3 {[%emt 0:00:11]} d5 {[%emt 0:00:08]} 3. exd5 {[%emt 0:00:05]} Qxd5 {[%emt 0:00:06]} 4. d4 {[%emt 0:00:03]} Nf6 {[%emt 0:00:08]} 5. Nf3 {[%emt 0:00:13]} e6 {[%emt 0:00:48]} 6. Na3 {[%emt 0:01:37]} Nc6 {[%emt 0:02:45]} 7. Be3 {[%emt 0:03:11]} cxd4 {[%emt 0:01:25]} 8. Nb5 {[%emt 0:00:11]} Qd8 {[%emt 0:00:19]} 9. Nbxd4 {[%emt 0:01:15]} Nd5 {[%emt 0:01:17]} 10. Nxc6 {[%emt 0:04:20]} bxc6 {[%emt 0:00:11]} 11. Bc1 {[%emt 0:07:06]} Bd6 {[%emt 0:07:31]} 12. Bd3 {[%emt 0:01:25]} O-O {[%emt 0:08:32]} 13. Qc2 {[%emt 0:01:30]} f5 {[%emt 0:01:09]} 14. Bg5 {[%emt 0:02:46]} Qc7 {[%emt 0:05:31]} 15. Nd4 {[%emt 0:14:41]} Rb8 {[%emt 0:06:34]} 16. O-O-O {[%emt 0:03:59]} h6 {[%emt 0:06:45]} 17. Bd2 {[%emt 0:00:44]} Qb6 {[%emt 0:02:48]} 18. g4 {[%emt 0:27:05]} fxg4 {[%emt 0:01:17]} 19. Be3 {[%emt 0:15:29]} Nxe3 {[%emt 0:05:02]} 20. fxe3 {[%emt 0:00:49]} e5 {[%emt 0:01:57]} 21. Qb3+ {[%emt 0:04:08]} Qxb3 {[%emt 0:01:03]} 22. Nxb3 {[%emt 0:00:05]} Be7 {[%emt 0:01:43]} 23. Be4 {[%emt 0:01:03]} Bg5 {[%emt 0:03:12]} 24. Rhe1 {[%emt 0:00:18]} Rb6 {[%emt 0:05:04]} 25. Rd6 {[%emt 0:03:53]} Be7 {[%emt 0:01:38]} 26. Rd2 {[%emt 0:01:54]} Bh4 {[%emt 0:05:59]} 27. Red1 {[%emt 0:01:39]} Bf2 {[%emt 0:02:40]} 28. Rd8 {[%emt 0:01:58]} Bxe3+ {[%emt 0:02:04]} 29. Kc2 {[%emt 0:00:00]} Bg5 {[%emt 0:00:53]} 30. Rxf8+ {[%emt 0:00:11]} Kxf8 {[%emt 0:00:08]} 31. Na5 {[%emt 0:00:02]} Be6 {[%emt 0:03:45]} 32. Nxc6 {[%emt 0:00:44]} Bxa2 {[%emt 0:03:06]} 33. b4 {[%emt 0:00:11]} Bf4 {[%emt 0:03:26]} 34. Rd7 {[%emt 0:00:49]} Bxh2 {[%emt 0:03:31]} 0-1

[Event "Mukachevo Masters IM 2018"]
[Site "Mukachevo"]
[Date "2018.10.17"]
[Round "1"]
[White "Bidsila, Andrej"]
[Black "Srinath, Rao S.V."]
[Result "0-1"]
[ECO "A05"]
[WhiteElo "2261"]
[BlackElo "2325"]
[Annotator "NA"]
[PlyCount "77"]
[EventDate "2018.08.17"]
[EventType "swiss"]
[EventCountry "UKR"]
[SourceTitle "playchess.com"]
[Source "ChessBase"]
[SourceQuality "1"]
[TimeControl "5400+30"]

1. Nf3 {[%emt 0:00:00]} Nf6 {[%emt 0:08:48]} 2. d3 {[%emt 0:01:10]} d5 {[%emt 0:01:54]} 3. e3 {[%emt 0:01:36]} Bf5 {[%emt 0:02:52]} 4. Be2 {[%emt 0:01:31]} Nbd7 {[%emt 0:00:14]} 5. Nbd2 {[%emt 0:04:10]} h6 {[%emt 0:00:08]} 6. b3 {[%emt 0:03:44]} e5 {[%emt 0:00:48]} 7. h3 {[%emt 0:02:45]} Bd6 {[%emt 0:00:10]} 8. Bb2 {[%emt 0:02:26]} Qe7 {[%emt 0:04:04]} 9. Nh2 {[%emt 0:09:35]} g5 {[%emt 0:01:15]} 10. g4 {[%emt 0:15:36]} Bg6 {[%emt 0:01:26]} 11. Bf3 {[%emt 0:07:51]} e4 {[%emt 0:03:55]} 12. dxe4 {[%emt 0:02:07]} dxe4 {[%emt 0:00:33]} 13. Bg2 {[%emt 0:01:37]} Be5 {[%emt 0:00:20]} 14. Qc1 {[%emt 0:03:15]} O-O-O {[%emt 0:00:17]} 15. Bxe5 {[%emt 0:03:07]} Nxe5 {[%emt 0:00:54]} 16. Qb2 {[%emt 0:01:51]} h5 {[%emt 0:01:30]} 17. O-O-O {[%emt 0:03:04]} hxg4 {[%emt 0:00:59]} 18. Nxg4 {[%emt 0:01:46]} Nfxg4 {[%emt 0:01:14]} 19. hxg4 {[%emt 0:00:30]} Rxh1 {[%emt 0:00:10]} 20. Rxh1 {[%emt 0:01:02]} Nxg4 {[%emt 0:06:30]} 21. Bh3 {[%emt 0:02:06]} Bf5 {[%emt 0:00:34]} 22. Bxg4 {[%emt 0:03:36]} Bxg4 {[%emt 0:03:24]} 23. Rh8 {[%emt 0:00:10]} f6 {[%emt 0:01:44]} 24. Rxd8+ {[%emt 0:01:25]} Qxd8 {[%emt 0:00:05]} 25. Qd4 {[%emt 0:02:31]} Qxd4 {[%emt 0:00:22]} 26. exd4 {[%emt 0:00:04]} Bf5 {[%emt 0:01:01]} 27. Nf1 {[%emt 0:01:14]} Kd7 {[%emt 0:00:47]} 28. Kd2 {[%emt 0:00:20]} Bg6 {[%emt 0:02:01]} 29. c4 {[%emt 0:00:59]} f5 {[%emt 0:00:07]} 30. Ne3 {[%emt 0:01:18]} Ke6 {[%emt 0:00:48]} 31. Nd5 {[%emt 0:03:24]} c6 {[%emt 0:00:04]} 32. Ne3 {[%emt 0:00:26]} f4 {[%emt 0:01:54]} 33. Ng4 {[%emt 0:02:11]} Bh5 {[%emt 0:00:35]} 34. Nh2 {[%emt 0:00:22]} g4 {[%emt 0:00:19]} 35. Nf1 {[%emt 0:01:02]} e3+ {[%emt 0:01:34]} 36. fxe3 {[%emt 0:01:23]} g3 {[%emt 0:00:05]} 37. Nxg3 {[%emt 0:07:51]} fxg3 {[%emt 0:00:06]} 38. Ke1 {[%emt 0:00:07]} Bf3 {[%emt 0:00:20]} 39. Kf1 {[%emt 0:00:37] Ke5} 0-1

[Event "Mukachevo Masters IM 2018"]
[Site "Mukachevo"]
[Date "2018.10.17"]
[Round "1"]
[White "Vachylia, Andrii"]
[Black "Shkuran, Danylo"]
[Result "1/2-1/2"]
[ECO "B13"]
[WhiteElo "2238"]
[BlackElo "2371"]
[Annotator "NA"]
[PlyCount "34"]
[EventDate "2018.08.17"]
[EventType "swiss"]
[EventCountry "UKR"]
[SourceTitle "playchess.com"]
[Source "ChessBase"]
[SourceQuality "1"]
[TimeControl "5400+30"]

1. e4 {[%emt 0:00:00]} c6 {[%emt 0:00:00]} 2. d4 {[%emt 0:00:00]} d5 {[%emt 0:00:00]} 3. exd5 {[%emt 0:00:00]} cxd5 {[%emt 0:00:00]} 4. Bd3 {[%emt 0:00:00]} Nc6 {[%emt 0:00:00]} 5. c3 {[%emt 0:00:01]} Nf6 {[%emt 0:00:06]} 6. Bf4 {[%emt 0:00:26]} e6 {[%emt 0:00:24]} 7. Nf3 {[%emt 0:00:10]} Bd6 {[%emt 0:00:20]} 8. Bxd6 {[%emt 0:00:57]} Qxd6 {[%emt 0:00:06]} 9. O-O {[%emt 0:00:09]} O-O {[%emt 0:00:12]} 10. Re1 {[%emt 0:00:12]} Rb8 {[%emt 0:01:33]} 11. Qe2 {[%emt 0:01:16]} b6 {[%emt 0:02:34]} 12. Nbd2 {[%emt 0:00:11]} Bb7 {[%emt 0:00:07]} 13. Ne5 {[%emt 0:01:02]} Ne7 {[%emt 0:02:41]} 14. a4 {[%emt 0:02:22]} a5 {[%emt 0:02:04]} 15. Ng4 {[%emt 0:03:24]} Nd7 {[%emt 0:05:09]} 16. Nf3 {[%emt 0:03:56]} Ng6 {[%emt 0:01:33]} 17. Qc2 {[%emt 0:02:37]} Qf4 {[%emt 0:00:32]} 1/2-1/2

[Event "Mukachevo Masters IM 2018"]
[Site "Mukachevo"]
[Date "2018.10.20"]
[Round "6"]
[White "Vypkhaniuk, Ihor"]
[Black "Oros, Robert"]
[Result "1-0"]
[ECO "A11"]
[WhiteElo "2389"]
[BlackElo "2336"]
[Annotator "NA"]
[PlyCount "81"]
[EventDate "2018.08.17"]
[EventType "swiss"]
[EventCountry "UKR"]
[SourceTitle "playchess.com"]
[Source "ChessBase"]
[SourceQuality "1"]
[TimeControl "5400+30"]

1. c4 {[%emt 0:03:05]} c6 {[%emt 0:00:22]} 2. g3 {[%emt 0:00:48]} d5 {[%emt 0:01:02]} 3. Bg2 {[%emt 0:01:18]} Nf6 {[%emt 0:02:08]} 4. Nf3 {[%emt 0:03:58]} Bg4 {[%emt 0:02:26]} 5. Ne5 {[%emt 0:00:55]} Be6 {[%emt 0:01:50]} 6. cxd5 {[%emt 0:00:59]} Bxd5 {[%emt 0:01:19]} 7. Nf3 {[%emt 0:00:04]} c5 {[%emt 0:06:43]} 8. Nc3 {[%emt 0:00:20] A11: Reti-Eröffnung} Bc6 {[%emt 0:00:37]} 9. O-O {[%emt 0:00:36]} Nbd7 {[%emt 0:01:58] LiveBook: 54 Games} (9... e6 10. Qc2 Be7 11. Rd1 O-O 12. d4 cxd4 13. Nxd4 Bxg2 14. Kxg2 Nbd7 15. Bg5 {½-½ (15) Svidler,P (2765)-Karjakin,S (2760) Riadh 2017}) 10. d3 {[%emt 0:05:00]} e6 {[%emt 0:02:40]} 11. e4 {[%emt 0:01:11]} e5 {[%emt 0:05:32]} 12. a4 {[%emt 0:03:16]} Bd6 $146 {[%emt 0:02:44]} ({Vorgänger:} 12... Be7 13. Nd2 O-O 14. Nc4 Qc7 15. f4 Rfe8 {1-0 (74) Erdos,V (2640)-Petrosian,T (2648) Warsaw 2012}) 13. Nh4 {[%emt 0:04:03]} g6 {[%emt 0:02:50]} 14. Bh6 {[%emt 0:03:40]} Bf8 {[%emt 0:01:45]} 15. Be3 {[%emt 0:01:01]} Bg7 {[%emt 0:01:57]} 16. f4 {[%emt 0:22:25]} exf4 {[%emt 0:01:14]} 17. gxf4 {[%emt 0:01:15]} Nh5 $11 {[%emt 0:03:36]} 18. Nf5 {[%emt 0:03:36]} Bxc3 {[%emt 0:10:11]} 19. bxc3 {[%emt 0:04:29]} Qf6 {[%emt 0:00:55]} 20. Nd4 {[%emt 0:12:44]} cxd4 {[%emt 0:09:11]} 21. Bxd4 {[%emt 0:00:07]} Qe7 {[%emt 0:00:18]} 22. Bxh8 {[%emt 0:00:32]} f6 {[%emt 0:00:06]} 23. e5 {[%emt 0:04:24]} Bxg2 {[%emt 0:00:09]} 24. Kxg2 {[%emt 0:01:31]} O-O-O {[%emt 0:02:25]} 25. Bxf6 {[%emt 0:01:12]} Ndxf6 {[%emt 0:00:16]} 26. exf6 {[%emt 0:00:28]} Qxf6 {[%emt 0:00:27]} 27. Qf3 {[%emt 0:01:02]} Qa6 {[%emt 0:01:01]} 28. d4 {[%emt 0:03:01]} Ng7 {[%emt 0:00:26]} 29. Kg1 {[%emt 0:02:41]} Nf5 {[%emt 0:00:21]} 30. Rab1 {[%emt 0:00:23]} Re8 {[%emt 0:00:38]} 31. Rfe1 {[%emt 0:00:44]} Rxe1+ {[%emt 0:00:28]} 32. Rxe1 {[%emt 0:00:02]} Qxa4 {[%emt 0:00:08]} 33. Qd5 {[%emt 0:00:55]} Qd7 {[%emt 0:01:28]} 34. Qxd7+ {[%emt 0:02:10]} Kxd7 {[%emt 0:00:10]} 35. Ra1 {[%emt 0:00:09]} a6 {[%emt 0:00:07]} 36. Kf2 {[%emt 0:00:14]} Ne7 {[%emt 0:00:22]} 37. Kf3 {[%emt 0:01:17]} Nd5 {[%emt 0:00:54]} 38. c4 {[%emt 0:00:43]} Ne7 {[%emt 0:01:36]} 39. Ke4 {[%emt 0:00:27]} Nf5 {[%emt 0:01:07]} 40. Rb1 {[%emt 0:00:00]} Kc6 {[%emt 0:00:00]} 41. Ke5 {[%emt 0:00:00] Kd5+ Ke4+} 1-0

[Event "Mukachevo Masters IM 2018"]
[Site "Mukachevo"]
[Date "2018.10.20"]
[Round "6"]
[White "Tiba, Vladyslav"]
[Black "Shkuran, Danylo"]
[Result "1-0"]
[ECO "B43"]
[WhiteElo "2337"]
[BlackElo "2371"]
[Annotator "NA"]
[PlyCount "87"]
[EventDate "2018.08.17"]
[EventType "swiss"]
[EventCountry "UKR"]
[SourceTitle "playchess.com"]
[Source "ChessBase"]
[SourceQuality "1"]
[TimeControl "5400+30"]

1. e4 {[%emt 0:00:00]} c5 {[%emt 0:00:00]} 2. Nf3 {[%emt 0:00:00]} e6 {[%emt 0:00:00]} 3. d4 {[%emt 0:00:00]} cxd4 {[%emt 0:00:04]} 4. Nxd4 {[%emt 0:00:00]} a6 {[%emt 0:00:08]} 5. Nc3 {[%emt 0:00:09]} Qc7 {[%emt 0:00:30]} 6. Be2 {[%emt 0:00:19]} Nf6 {[%emt 0:00:21]} 7. O-O {[%emt 0:00:23]} Be7 {[%emt 0:00:30] LiveBook: 217 Partien} 8. Be3 {[%emt 0:00:39]} O-O {[%emt 0:00:15]} 9. f4 {[%emt 0:01:00]} d6 {[%emt 0:00:15]} 10. a4 {[%emt 0:05:25]} Nc6 {[%emt 0:05:27]} 11. Kh1 {[%emt 0:02:12]} Nxd4 {[%emt 0:02:35] B85: Sizilianisch (Scheveninger System)} (11... Re8 12. Bf3 Nxd4 13. Qxd4 e5 14. Qd2 exf4 15. Bxf4 Be6 16. Rfd1 Rad8 17. a5 Ng4 18. Bxg4 Bxg4 19. Nd5 Qd7 20. Rf1 Be6 21. b3 Bxd5 22. Qxd5 Qc6 23. Rad1 {½-½ (23) Jakovenko,D (2721)-Harikrishna,P (2738) Palma de Mallorca 2017}) 12. Bxd4 {[%emt 0:00:13]} Nd7 {[%emt 0:01:10]} 13. Bd3 $146 {[%emt 0:03:12]} ({Vorgänger:} 13. Qd3 Bf6 14. Bxf6 Nxf6 15. Rad1 d5 16. exd5 exd5 17. Bf3 Qxf4 18. Nxd5 Nxd5 19. Bxd5 {1-0 (27) Brito,L (2241)-Serafim Junior,A (1845) Curitiba 2016}) 13... Bf6 {[%emt 0:04:48]} 14. Bxf6 {[%emt 0:07:02]} Nxf6 {[%emt 0:05:19]} 15. Qe1 {[%emt 0:01:57]} Bd7 {[%emt 0:07:33]} 16. Qh4 {[%emt 0:06:26]} h6 {[%emt 0:01:15]} 17. Rae1 {[%emt 0:04:22]} Bc6 {[%emt 0:01:23]} 18. e5 {[%emt 0:05:42]} Nd7 {[%emt 0:01:28]} 19. Qh5 {[%emt 0:12:51]} Qb6 {[%emt 0:11:39]} 20. b3 {[%emt 0:11:30]} Qb4 {[%emt 0:08:15]} 21. Ne4 {[%emt 0:10:00]} Bxe4 {[%emt 0:01:53]} 22. Rxe4 {[%emt 0:00:11]} Qb6 $18 {[%emt 0:04:52]} (22... Qa3 $11 {and Black has nothing to worry.}) 23. Qh4 {[%emt 0:05:26]} Qd8 {[%emt 0:02:48]} 24. Qxd8 {[%emt 0:02:31]} Raxd8 {[%emt 0:03:11]} 25. exd6 {[%emt 0:00:52]} Nc5 {[%emt 0:01:00]} 26. Rd4 {[%emt 0:00:12]} Nxd3 {[%emt 0:00:17]} 27. Rxd3 {[%emt 0:00:08]} Rd7 {[%emt 0:00:10]} 28. c4 {[%emt 0:00:50]} Rc8 {[%emt 0:03:00]} 29. Kg1 {[%emt 0:06:19]} f6 {[%emt 0:00:48]} 30. Rc1 {[%emt 0:01:22]} Kf7 {[%emt 0:01:01]} 31. a5 {[%emt 0:03:11]} g5 {[%emt 0:01:37]} 32. fxg5 {[%emt 0:02:18]} hxg5 {[%emt 0:00:36]} 33. b4 {[%emt 0:01:45]} e5 {[%emt 0:00:31]} 34. c5 {[%emt 0:00:32]} Rc6 {[%emt 0:00:36]} 35. Rf1 {[%emt 0:02:38]} Ke6 {[%emt 0:00:50]} 36. Rh3 {[%emt 0:01:31]} Rc8 {[%emt 0:00:56]} 37. Rh6 {[%emt 0:01:08]} Rf8 {[%emt 0:00:24]} 38. Kf2 {[%emt 0:00:34]} Kd5 {[%emt 0:05:14]} 39. Ke3 {[%emt 0:00:31]} Kc4 {[%emt 0:02:48]} 40. Ke4 {[%emt 0:00:00]} Kxb4 {[%emt 0:00:00]} 41. Kd5 {[%emt 0:00:00]} Kxa5 {[%emt 0:00:00]} 42. Rhxf6 {[%emt 0:00:00]} Rxf6 {[%emt 0:00:00]} 43. Rxf6 {[%emt 0:00:00]} Kb5 {[%emt 0:00:00]} 44. Re6 {[%emt 0:00:00]} 1-0

[Event "Mukachevo Masters IM 2018"]
[Site "Mukachevo"]
[Date "2018.10.20"]
[Round "6"]
[White "Boricsev, Oleg"]
[Black "Larkin, Vladyslav"]
[Result "1/2-1/2"]
[ECO "B22"]
[WhiteElo "2298"]
[BlackElo "2234"]
[Annotator "NA"]
[PlyCount "31"]
[EventDate "2018.08.17"]
[EventType "swiss"]
[EventCountry "UKR"]
[SourceTitle "playchess.com"]
[Source "ChessBase"]
[SourceQuality "1"]
[TimeControl "5400+30"]

1. e4 {[%emt 0:00:00]} c5 {[%emt 0:00:00]} 2. c3 {[%emt 0:00:00]} d5 {[%emt 0:00:00]} 3. exd5 {[%emt 0:00:00]} Qxd5 {[%emt 0:00:00]} 4. d4 {[%emt 0:00:00]} Nc6 {[%emt 0:00:00]} 5. Nf3 {[%emt 0:00:00]} Bg4 {[%emt 0:00:11]} 6. Be2 {[%emt 0:00:06]} cxd4 {[%emt 0:00:28]} 7. cxd4 {[%emt 0:00:24]} e6 {[%emt 0:00:06]} 8. h3 {[%emt 0:00:26]} Bxf3 {[%emt 0:01:00] LiveBook: 3 Games} 9. Bxf3 {[%emt 0:00:17]} Qd7 {[%emt 0:00:06]} 10. Be3 {[%emt 0:02:03]} Nge7 {[%emt 0:08:50]} 11. O-O {[%emt 0:02:06]} Nf5 $11 {[%emt 0:00:36]} 12. Nc3 {[%emt 0:10:23]} Bd6 {[%emt 0:10:09]} 13. d5 {[%emt 0:03:43]} exd5 {[%emt 0:00:46]} 14. Nxd5 {[%emt 0:01:54]} Nxe3 {[%emt 0:01:38]} 15. Nxe3 {[%emt 0:01:20]} O-O {[%emt 0:00:58]} 16. Bg4 {[%emt 0:05:46]} 1/2-1/2

[Event "Mukachevo Masters IM 2018"]
[Site "Mukachevo"]
[Date "2018.10.20"]
[Round "6"]
[White "Kagramanianz, Vartan"]
[Black "Srinath, Rao S.V."]
[Result "1/2-1/2"]
[ECO "A45"]
[WhiteElo "2231"]
[BlackElo "2325"]
[Annotator "NA"]
[PlyCount "84"]
[EventDate "2018.08.17"]
[EventType "swiss"]
[EventCountry "UKR"]
[SourceTitle "playchess.com"]
[Source "ChessBase"]
[SourceQuality "1"]
[TimeControl "5400+30"]

1. d4 {[%emt 0:00:00]} Nf6 {[%emt 0:04:51]} 2. Bf4 {[%emt 0:00:00]} g6 {[%emt 0:00:09]} 3. e3 {[%emt 0:00:05]} d6 {[%emt 0:00:05]} 4. h3 {[%emt 0:00:22]} Bg7 {[%emt 0:00:04]} 5. Nf3 {[%emt 0:00:24]} O-O {[%emt 0:00:07]} 6. Be2 {[%emt 0:00:05]} c5 {[%emt 0:01:02]} 7. c3 {[%emt 0:00:36] LiveBook: 533 Games} b6 {[%emt 0:00:12]} 8. O-O {[%emt 0:00:28]} Bb7 {[%emt 0:00:02]} 9. Re1 {[%emt 0:05:15]} Nbd7 {[%emt 0:02:53]} 10. Bh2 {[%emt 0:03:05]} a6 {[%emt 0:00:35]} 11. a4 {[%emt 0:05:09]} Ra7 {[%emt 0:00:46]} 12. Nbd2 {[%emt 0:21:32]} Qa8 {[%emt 0:00:09]} 13. Bf1 {[%emt 0:00:53]} Re8 {[%emt 0:02:15]} 14. Qe2 {[%emt 0:03:05]} cxd4 {[%emt 0:08:32]} 15. cxd4 $11 {[%emt 0:02:30]} Ne4 {[%emt 0:02:33]} 16. Nxe4 {[%emt 0:02:14]} Bxe4 {[%emt 0:09:03]} 17. Nd2 {[%emt 0:00:36]} Bc6 {[%emt 0:01:00]} 18. Nc4 {[%emt 0:03:38]} Rc8 {[%emt 0:06:23]} 19. b3 {[%emt 0:06:33]} Bd5 {[%emt 0:01:21]} 20. Qd2 {[%emt 0:04:19]} Rac7 {[%emt 0:04:07]} 21. e4 {[%emt 0:04:56]} Bxe4 {[%emt 0:03:03]} 22. f3 {[%emt 0:00:15]} Bf5 {[%emt 0:06:19]} 23. Rxe7 {[%emt 0:01:57]} Qd5 {[%emt 0:00:33]} 24. Rd1 {[%emt 0:02:52]} Bf8 {[%emt 0:06:38]} 25. Rxd7 {[%emt 0:12:51]} Bxd7 {[%emt 0:00:25]} 26. Nxb6 {[%emt 0:00:05]} Qxb3 {[%emt 0:00:16]} 27. Nxc8 {[%emt 0:00:06]} Bxc8 {[%emt 0:00:15]} 28. Rc1 {[%emt 0:00:26]} Rxc1 {[%emt 0:01:11]} 29. Qxc1 {[%emt 0:00:06]} Bd7 {[%emt 0:00:22]} 30. Bxa6 {[%emt 0:04:18]} Qxa4 {[%emt 0:01:46]} 31. Bc4 {[%emt 0:08:49]} d5 {[%emt 0:00:50]} 32. Be2 {[%emt 0:01:15]} Qxd4+ {[%emt 0:00:11]} 33. Kh1 {[%emt 0:00:01]} Bf5 {[%emt 0:06:48]} 34. Qd1 {[%emt 0:02:31]} Qb2 {[%emt 0:01:48]} 35. Bf4 {[%emt 0:01:08]} d4 {[%emt 0:01:40]} 36. Qd2 {[%emt 0:01:13]} Ba3 {[%emt 0:06:53]} 37. Qa5 {[%emt 0:03:20]} Qb1+ {[%emt 0:05:57]} 38. Kh2 {[%emt 0:00:17]} Bf8 {[%emt 0:00:08]} 39. Qd8 {[%emt 0:00:30]} Qb4 {[%emt 0:00:08]} 40. Be5 {[%emt 0:00:00]} Qe7 {[%emt 0:00:00]} 41. Qxd4 Qc5 42. Qb2 Bd6 1/2-1/2

[Event "Mukachevo Masters IM 2018"]
[Site "Mukachevo"]
[Date "2018.10.21"]
[Round "8"]
[White "Bidsila, Andrej"]
[Black "Oros, Robert"]
[Result "0-1"]
[ECO "A06"]
[WhiteElo "2261"]
[BlackElo "2336"]
[Annotator "NA"]
[PlyCount "44"]
[EventDate "2018.08.17"]
[EventType "swiss"]
[EventCountry "UKR"]
[SourceTitle "playchess.com"]
[Source "ChessBase"]
[SourceQuality "1"]
[TimeControl "5400+30"]

{[%evp 8,44,18,-1,0,-8,-2,-22,-8,-16,-5,0,0,0,-4,-42,-15,32767,32767,32767,32767,32767,32767,32767,32767,-51,-37,-62,0,-36,-26,32767,32767,-29984,-29986,-29994,32767,32767,-29996]} 1. Nf3 {[%emt 0:00:00]} d5 {[%emt 0:00:13]} 2. e3 {[%emt 0:00:55]} c5 {[%emt 0:01:21]} 3. Bb5+ {[%emt 0:01:28]} Nc6 {[%emt 0:00:13]} 4. c3 {[%emt 0:01:18]} Qd6 {[%emt 0:01:33]} 5. d4 {[%emt 0:00:35]} Bg4 {[%emt 0:00:47]} 6. dxc5 {[%emt 0:02:10]} Qxc5 {[%emt 0:00:23]} 7. Bxc6+ {[%emt 0:00:52]} bxc6 {[%emt 0:01:09]} 8. Nbd2 {[%emt 0:01:03]} Nf6 {[%emt 0:00:40]} 9. Qa4 {[%emt 0:00:15]} Bxf3 {[%emt 0:10:45]} 10. Nxf3 {[%emt 0:00:49]} e6 {[%emt 0:01:56]} 11. Qd4 {[%emt 0:02:03]} Qb5 {[%emt 0:00:40]} 12. a4 {[%emt 0:04:47]} Qa6 {[%emt 0:00:25]} 13. b4 {[%emt 0:00:29]} c5 {[%emt 0:01:30]} 14. bxc5 {[%emt 0:04:43]} Be7 {[%emt 0:00:40]} 15. Ne5 {[%emt 0:06:22]} O-O {[%emt 0:04:40]} 16. f3 {[%emt 0:02:36]} Rfc8 {[%emt 0:01:04]} 17. Ba3 {[%emt 0:02:37]} Rab8 {[%emt 0:00:51]} 18. Kf2 {[%emt 0:03:08]} Rb3 {[%emt 0:00:42]} 19. Bb4 {[%emt 0:10:56]} Rb2+ {[%emt 0:00:18]} 20. Kg3 {[%emt 0:01:58]} Qe2 {[%emt 0:01:50]} 21. Rhg1 {[%emt 0:00:25]} Ne4+ {[%emt 0:01:00]} 22. Kh3 {[%emt 0:06:20]} Qf2 {[%emt 0:04:00]} 0-1